fUSD/lending_fUSD_20240525
["ID","MTS","AMOUNT","RATE_DAILY","PERIOD"]
[327930555,1716664237773,-6426.15,0.00019339,2]
[327930556,1716664237782,-5904.14,0.00019339,2]
[327930557,1716664237791,-165.29677628,0.00019581,2]
[327930558,1716664237800,-165.29677628,0.00020089,2]
[327930559,1716664237809,-165.29677628,0.00020598,2]
[327930560,1716664237818,-165.29677628,0.00021106,2]
[327930561,1716664237829,-165.29677628,0.00021615,2]
[327930562,1716664237839,-165.29677628,0.00022123,2]
[327930563,1716664237849,-165.29677628,0.00022632,2]
[327930564,1716664237858,-6159.33,0.00022978,2]
[327930565,1716664237867,-165.29677628,0.0002314,2]
[327930566,1716664237878,-1852.42,0.00023254,2]
[327930567,1716664237887,-155.82,0.00023273,2]
[327930568,1716664237896,-165.29677628,0.00023649,2]
[327930569,1716664237906,-190.88,0.00023666,2]
[327930570,1716664237916,-250.0,0.00023685,2]
[327930571,1716664237926,-227.07,0.00023724,2]
[327930572,1716664237937,-3352.51,0.00023823,2]
[327930573,1716664237946,-172.5,0.00023838,2]
[327930574,1716664237955,-200.0,0.00023839,2]
[327930575,1716664237965,-250.0,0.00023848,2]
[327930576,1716664237974,-250.0,0.00023856,2]
[327930577,1716664237983,-240.0,0.00023894,2]
[327930578,1716664237993,-1000.0,0.00023927,2]
[327930579,1716664238003,-718.77,0.00023927,2]
[327930580,1716664238012,-1382.04,0.00023946,2]
[327930581,1716664238023,-200.0,0.00023994,2]
[327930582,1716664238032,-164.38,0.00024055,2]
[327930583,1716664238043,-161.44222684,0.00024094,2]
[327930584,1716664238053,-165.29677628,0.00024157,2]
[327930585,1716664238063,-166.72,0.00024343,2]
[327930586,1716664238073,-155.24919301,0.00024626,2]
[327930587,1716664238084,-165.29677628,0.00024666,2]
[327930588,1716664238093,-152.98616253,0.00024678,2]
[327930589,1716664238102,-2866.47698703,0.00024797,2]
[327930590,1716664238112,-194.93337643,0.00024896,2]
[327930591,1716664238122,-474.9516767,0.00024896,2]
[327930593,1716664238131,-321.99182189,0.00024896,2]
[327930595,1716664238141,-1533.84504657,0.00024896,2]
[327930597,1716664238150,-419.22158858,0.00024896,2]
[327930598,1716664238160,-462.69355548,0.00024896,2]
[327930599,1716664238169,-711.4407162,0.00024896,2]
[327930600,1716664238178,-203.05839277,0.00024896,2]
[327930601,1716664238188,-155.0,0.00024897,2]
[327930602,1716664238198,-237.62315107,0.00024897,2]
[327930603,1716664238208,-153.72,0.00025156,2]
[327930604,1716664238217,-165.29677628,0.00025174,2]
[327930605,1716664238228,-150.97582734,0.00025458,2]
[327930606,1716664238237,-166.66666667,0.00025493,2]
[327930607,1716664238247,-150.0,0.00025632,2]
[327930608,1716664238256,-1100.0,0.00025636,2]
[327930609,1716664238266,-165.29677628,0.00025683,2]
[327930610,1716664238276,-150.0,0.00025842,2]
[327930611,1716664238285,-150.0,0.00025853,2]
[327930612,1716664238294,-150.0,0.00025949,2]
[327930613,1716664238304,-151.83882976,0.00026094,2]
[327930614,1716664238313,-150.0,0.00026157,2]
[327930615,1716664238323,-1100.0,0.00026184,2]
[327930616,1716664238333,-165.29677628,0.00026191,2]
[327930617,1716664238342,-150.0,0.00026208,2]
[327930618,1716664238351,-150.0,0.00026338,2]
[327930619,1716664238362,-300.0,0.00026386,2]
[327930620,1716664238372,-173.16,0.00026492,2]
[327930621,1716664238381,-150.0,0.00026511,2]
[327930622,1716664238391,-150.0,0.00026535,2]
[327930623,1716664238400,-3352.51,0.00026563,2]
[327930624,1716664238410,-150.0,0.00026637,2]
[327930625,1716664238419,-150.0,0.00026649,2]
[327930626,1716664238429,-6053.24518857,0.0002669,2]
[327930627,1716664238439,-165.29677628,0.000267,2]
[327930628,1716664238448,-150.0,0.00026722,2]
[327930629,1716664238640,-1100.0,0.00026732,2]
[327930630,1716664238651,-346.22161261,0.0002679,2]
[327930631,1716664238660,-346.22161261,0.0002679,2]
[327930632,1716664238669,-346.22161261,0.0002679,2]
[327930633,1716664238679,-346.22161261,0.0002679,2]
[327930634,1716664238688,-346.22161261,0.0002679,2]
[327930635,1716664238697,-346.22161261,0.0002679,2]
[327930636,1716664238707,-346.22161261,0.0002679,2]
[327930637,1716664238716,-346.22161261,0.0002679,2]
[327930638,1716664238726,-346.22161261,0.0002679,2]
[327930639,1716664238735,-346.22161261,0.0002679,2]
[327930640,1716664238744,-346.22161261,0.0002679,2]
[327930641,1716664238756,-346.22161261,0.0002679,2]
[327930642,1716664238767,-346.22161261,0.0002679,2]
[327930643,1716664238777,-346.22161261,0.0002679,2]
[327930644,1716664238787,-346.22161261,0.0002679,2]
[327930645,1716664238797,-346.22161261,0.0002679,2]
[327930646,1716664238806,-346.22161261,0.0002679,2]
[327930647,1716664238815,-346.22161261,0.0002679,2]
[327930648,1716664238824,-346.22161261,0.0002679,2]
[327930649,1716664238835,-346.22161261,0.0002679,2]
[327930650,1716664238847,-346.22161261,0.0002679,2]
[327930651,1716664238856,-346.22161261,0.0002679,2]
[327930652,1716664238865,-346.22161261,0.0002679,2]
[327930653,1716664238875,-346.22161261,0.0002679,2]
[327930654,1716664238885,-346.22161261,0.0002679,2]
[327930655,1716664238894,-346.22161261,0.0002679,2]
[327930656,1716664238903,-346.22161261,0.0002679,2]
[327930657,1716664238912,-346.22161261,0.0002679,2]
[327930658,1716664238922,-346.22161261,0.0002679,2]
[327930659,1716664238931,-346.22161261,0.0002679,2]
[327930660,1716664238940,-346.22161261,0.0002679,2]
[327930661,1716664238952,-346.22161261,0.0002679,2]
[327930662,1716664238962,-346.22161261,0.0002679,2]
[327930663,1716664238972,-346.22161261,0.0002679,2]
[327930664,1716664238981,-346.22161261,0.0002679,2]
[327930665,1716664238990,-346.22161261,0.0002679,2]
[327930666,1716664239000,-346.22161261,0.0002679,2]
[327930667,1716664239010,-346.22161261,0.0002679,2]
[327930668,1716664239019,-346.22161261,0.0002679,2]
[327930669,1716664239028,-346.22161261,0.0002679,2]
[327930670,1716664239038,-346.22161261,0.0002679,2]
[327930671,1716664239048,-346.22161261,0.0002679,2]
[327930672,1716664239058,-346.22161261,0.0002679,2]
[327930673,1716664239068,-346.22161261,0.0002679,2]
[327930674,1716664239079,-346.22161261,0.0002679,2]
[327930675,1716664239090,-346.22161261,0.0002679,2]
[327930676,1716664239101,-346.22161261,0.0002679,2]
[327930677,1716664239111,-346.22161261,0.0002679,2]
[327930678,1716664239120,-346.22161261,0.0002679,2]
[327930679,1716664239129,-346.22161261,0.0002679,2]
[327930680,1716664239139,-346.22161261,0.0002679,2]
[327930681,1716664239148,-346.22161261,0.0002679,2]
[327930682,1716664239158,-346.22161261,0.0002679,2]
[327930683,1716664239168,-346.22161261,0.0002679,2]
[327930684,1716664239179,-346.22161261,0.0002679,2]
[327930685,1716664239188,-346.22161261,0.0002679,2]
[327930686,1716664239198,-346.22161261,0.0002679,2]
[327930687,1716664239207,-346.22161261,0.0002679,2]
[327930688,1716664239217,-346.22161261,0.0002679,2]
[327930689,1716664239227,-346.22161261,0.0002679,2]
[327930690,1716664239237,-346.22161261,0.0002679,2]
[327930691,1716664239247,-346.22161261,0.0002679,2]
[327930692,1716664239257,-346.22161261,0.0002679,2]
[327930693,1716664239267,-346.22161261,0.0002679,2]
[327930694,1716664239277,-346.22161261,0.0002679,2]
[327930695,1716664239286,-346.22161261,0.0002679,2]
[327930696,1716664239296,-346.22161261,0.0002679,2]
[327930697,1716664239306,-346.22161261,0.0002679,2]
[327930698,1716664239316,-346.22161261,0.0002679,2]
[327930699,1716664239325,-346.22161261,0.0002679,2]
[327930700,1716664239336,-346.22161261,0.0002679,2]
[327930701,1716664239346,-346.22161261,0.0002679,2]
[327930702,1716664239355,-346.22161261,0.0002679,2]
[327930703,1716664239364,-346.22161261,0.0002679,2]
[327930704,1716664239374,-346.22161261,0.0002679,2]
[327930705,1716664239384,-346.22161261,0.0002679,2]
[327930706,1716664239394,-346.22161261,0.0002679,2]
[327930707,1716664239403,-346.22161261,0.0002679,2]
[327930708,1716664239413,-346.22161261,0.0002679,2]
[327930709,1716664239422,-155.0,0.00026799,2]
[327930710,1716664239432,-18088.978097,0.000268,2]
[327930711,1716664239442,-27133.467145,0.000268,2]
[327930712,1716664239452,-10029.66086617,0.000268,2]
[327930713,1716664239618,-715.77307623,0.000268,2]
[327930714,1716664239771,-2000.0,0.000268,2]
[327930715,1716664239782,-717.42999142,0.000268,2]
[327930718,1716664240430,-22715.09226018,0.000268,2]
[327930720,1716664240440,-45222.445243,0.000268,2]
[327930721,1716664240451,-870.49,0.00026812,2]
[327930722,1716664240460,-346.22161261,0.0002689,2]
[327930723,1716664240469,-723.33136867,0.000269,2]
[327930724,1716664240479,-346.22161261,0.00026907,2]
[327930725,1716664240488,-1000.0,0.00026917,2]
[327930726,1716664240497,-171.790973,0.00026979,2]
[327930727,1716664240506,-200.0,0.00026979,2]
[327930728,1716664240515,-346.22161261,0.0002699,2]
[327930729,1716664240525,-346.22161261,0.0002699,2]
[327930730,1716664240534,-346.22161261,0.0002699,2]
[327930731,1716664240544,-346.22161261,0.0002699,2]
[327930732,1716664240554,-346.22161261,0.0002699,2]
[327930733,1716664240564,-346.22161261,0.0002699,2]
[327930734,1716664240573,-346.22161261,0.0002699,2]
[327930735,1716664240584,-346.22161261,0.0002699,2]
[327930736,1716664240593,-346.22161261,0.0002699,2]
[327930737,1716664240602,-346.22161261,0.0002699,2]
[327930738,1716664240611,-346.22161261,0.0002699,2]
[327930739,1716664240621,-346.22161261,0.0002699,2]
[327930740,1716664240630,-346.22161261,0.0002699,2]
[327930741,1716664240640,-346.22161261,0.0002699,2]
[327930742,1716664240649,-346.22161261,0.0002699,2]
[327930743,1716664240658,-346.22161261,0.0002699,2]
[327930744,1716664240667,-346.22161261,0.0002699,2]
[327930745,1716664240677,-346.22161261,0.0002699,2]
[327930746,1716664240686,-346.22161261,0.0002699,2]
[327930747,1716664240695,-1000.0,0.00027,2]
[327930748,1716664240704,-63311.42334,0.00027,2]
[327930749,1716664240713,-72355.912389,0.00027,2]
[327930750,1716664240722,-500.0,0.00027,2]
[327930751,1716664240732,-500.0,0.00027,2]
[327930752,1716664240741,-800.0,0.00027006,2]
[327930753,1716664240750,-702.72217704,0.00027051,2]
[327930754,1716664240764,-150.0,0.00027061,2]
[327930755,1716664240774,-300.0694125,0.00027094,2]
[327930756,1716664240782,-621.1765,0.00027096,2]
[327930757,1716664240791,-2295.1652,0.00027096,2]
[327930758,1716664240802,-1338.2993009,0.00027096,2]
[327930759,1716664240812,-173.95959608,0.00027097,2]
[327930760,1716664240822,-5109.25083282,0.00027097,2]
[327930761,1716664240831,-1338.29930088,0.00027098,2]
[327930762,1716664240843,-1338.29930088,0.000271,2]
[327930763,1716664240852,-702.72217703,0.00027138,2]
[327930764,1716664240860,-800.0,0.00027151,2]
[327930765,1716664240870,-448.2093955,0.00027186,2]
[327930766,1716664240879,-151.82,0.00027187,2]
[327930767,1716664240888,-664.9849415,0.0002719,2]
[327930768,1716664240897,-17209.9357497,0.0002719,2]
[327930769,1716664240906,-151.82,0.0002719,2]
[327930770,1716664240915,-308.12039765,0.00027194,2]
[327930771,1716664240924,-243.3052679,0.00027194,2]
[327930772,1716664240934,-155.78110347,0.00027194,2]
[327930773,1716664240943,-10260.80507631,0.00027194,2]
[327930774,1716664240952,-643.52892318,0.00027194,2]
[327930775,1716664240961,-156.11508961,0.00027194,2]
[327930776,1716664240970,-155.85062154,0.00027194,2]
[327930777,1716664240981,-1227.04758271,0.00027194,2]
[327930778,1716664240990,-155.61849233,0.00027194,2]
[327930779,1716664240999,-263.56287937,0.00027194,2]
[327930780,1716664241008,-155.0,0.00027194,2]
[327930781,1716664241017,-156.71205072,0.00027194,2]
[327930782,1716664241027,-171.68622836,0.00027194,2]
[327930783,1716664241036,-155.25240414,0.00027194,2]
[327930784,1716664241045,-228.76365115,0.00027194,2]
[327930785,1716664241055,-222.61816632,0.00027194,2]
[327930786,1716664241063,-318.10175994,0.00027194,2]
[327930787,1716664241072,-219.87195782,0.00027194,2]
[327930788,1716664241082,-155.0,0.00027194,2]
[327930789,1716664241092,-155.0,0.00027194,2]
[327930790,1716664241101,-3881.95677998,0.00027194,2]
[327930791,1716664241111,-156.27702837,0.00027194,2]
[327930792,1716664241120,-155.14780718,0.00027194,2]
[327930793,1716664241130,-6167.89787081,0.00027194,2]
[327930794,1716664241139,-3847.85642599,0.00027195,2]
[327930795,1716664241148,-157.79193843,0.00027195,2]
[327930796,1716664241158,-1212.23903245,0.00027195,7]
[327930797,1716664241167,-156.15341788,0.00027195,2]
[327930798,1716664241177,-236.94875327,0.00027195,2]
[327930799,1716664241186,-158.72474019,0.00027195,2]
[327930800,1716664241195,-155.39323176,0.00027195,2]
[327930801,1716664241205,-363.21107447,0.00027195,10]
[327930802,1716664241214,-156.5238304,0.00027195,2]
[327930803,1716664241224,-204.98320377,0.00027195,2]
[327930804,1716664241233,-186.55757092,0.00027195,2]
[327930805,1716664241242,-155.7951538,0.00027195,2]
[327930806,1716664241251,-159.75553391,0.00027195,2]
[327930807,1716664241260,-156.5328062,0.00027195,2]
[327930808,1716664241269,-218.35253764,0.00027195,2]
[327930809,1716664241278,-302.1495827,0.00027195,2]
[327930810,1716664241287,-155.96188869,0.00027195,2]
[327930811,1716664241296,-7623.75820239,0.00027195,2]
[327930812,1716664241305,-155.30075573,0.00027195,2]
[327930813,1716664241314,-157.08455059,0.00027195,2]
[327930814,1716664241323,-277.01768233,0.00027195,2]
[327930815,1716664241338,-158.04738612,0.00027195,2]
[327930816,1716664241354,-2039.60696169,0.00027195,2]
[327930817,1716664241372,-1024.33481691,0.00027195,2]
[327930818,1716664241381,-1249.24282258,0.00027195,2]
[327930819,1716664241390,-453.38872077,0.00027195,2]
[327930820,1716664241399,-356.81836994,0.00027195,2]
[327930821,1716664241409,-962.30983499,0.00027195,2]
[327930822,1716664241418,-205.00342331,0.00027195,2]
[327930823,1716664241427,-326.93867071,0.00027195,2]
[327930824,1716664241436,-2001.77490136,0.00027195,2]
[327930825,1716664241446,-375.42867754,0.00027195,2]
[327930826,1716664241456,-857.6921104,0.00027195,2]
[327930827,1716664241465,-155.0,0.00027195,2]
[327930828,1716664241474,-2705.01270279,0.00027195,2]
[327930829,1716664241483,-295.15517253,0.00027195,2]
[327930830,1716664241492,-537.37963433,0.00027195,2]
[327930831,1716664241501,-213.18530058,0.00027195,2]
[327930832,1716664241510,-685.78745847,0.00027195,2]
[327930833,1716664241520,-4431.54285729,0.00027195,2]
[327930834,1716664241529,-156.62621591,0.00027195,2]
[327930835,1716664241538,-155.2031768,0.00027195,2]
[327930836,1716664241547,-155.62562668,0.00027195,2]
[327930837,1716664241557,-203.24524876,0.00027195,2]
[327930838,1716664241566,-155.35534899,0.00027195,2]
[327930839,1716664241575,-155.88260566,0.00027195,2]
[327930840,1716664241584,-155.35256194,0.00027195,2]
[327930841,1716664241593,-163.57391201,0.00027195,2]
[327930842,1716664241603,-155.50720658,0.00027195,2]
[327930843,1716664241612,-489.97595152,0.00027196,2]
[327930844,1716664241621,-1073.22459624,0.00027196,10]
[327930845,1716664241630,-59189.63135874,0.00027196,2]
[327930846,1716664241648,-614.19569904,0.00027196,2]
[327930847,1716664241658,-2446.22200411,0.00027196,2]
[327930875,1716664242783,-180.85901366,0.00027194,2]
[327930883,1716664242943,-682.58248842,0.00027196,2]
[327930885,1716664243584,-8282.15581029,0.00027196,2]
[327930887,1716664243596,-1682.5,0.00027196,2]
[327930902,1716664245838,-57598.0941315,0.000267,2]
[327930903,1716664245848,-244362.63266939,0.00027196,2]
[327930904,1716664245858,-151.0,0.00027196,7]
[327930905,1716664245868,-151.0,0.00027196,7]
[327930906,1716664245877,-151.0,0.00027196,7]
[327930907,1716664245887,-348.945171,0.00027196,7]
[327930908,1716664245897,-348.945171,0.00027196,7]
[327930909,1716664245907,-119109.30088749,0.00027197,2]
[327930910,1716664245916,-8907.19162904,0.00027197,2]
[327930990,1716664249632,152.82,0.00013973,2]
[327930997,1716664624771,168.72,0.00024675,120]
[327930998,1716664807090,151.06,0.00013973,2]
[327930999,1716665203617,-212.2742794,0.00017212,2]
[327931000,1716665280484,152.82,0.00013973,2]
[327931010,1716665431844,-155.0,0.00017201,2]
[327931012,1716665431856,-210.47096488,0.00017202,2]
[327931014,1716665431866,-155.0,0.00017203,2]
[327931016,1716665431875,-306.5829692,0.00017203,2]
[327931018,1716665431884,-39.70889262,0.00017211,2]
[327931019,1716665431897,-110.29110738,0.00017211,2]
[327931021,1716665431906,-150.0,0.00017211,2]
[327931023,1716665431916,-508.65583075,0.00017212,2]
[327931029,1716665431985,-4666.6,0.00017212,2]
[327931031,1716665432126,-30026.79969871,0.00017212,2]
[327931032,1716665432138,-2294.96128884,0.00017212,2]
[327931033,1716665432147,-169.80665893,0.00017212,2]
[327931034,1716665432163,-874.5063511,0.00017212,2]
[327931035,1716665432172,-532.02415979,0.00017213,2]
[327931036,1716665432181,-1790.57682134,0.0001722,2]
[327931037,1716665432190,-4522.0,0.000176,2]
[327931038,1716665432202,-452.97,0.000176,2]
[327931039,1716665432211,-1950.5,0.00017808,2]
[327931040,1716665432220,-210.0,0.00018932,2]
[327931041,1716665432229,-210.0,0.00018932,2]
[327931042,1716665432241,-1206.97,0.00019452,2]
[327931043,1716665432251,-8306.82,0.00019452,2]
[327931044,1716665432260,-19999.99,0.00019588,2]
[327931045,1716665432270,-29999.99,0.00019588,2]
[327931047,1716665432279,-499.99,0.00019726,2]
[327931049,1716665432289,-150.99,0.00019726,2]
[327931051,1716665432298,-458.87,0.00019726,2]
[327931053,1716665432308,-362.92,0.00019988,2]
[327931055,1716665432318,-6830.48,0.00021698,2]
[327931057,1716665432328,-250.0,0.00021705,2]
[327931058,1716665432338,-921.88,0.00021828,2]
[327931059,1716665432347,-250.0,0.00021889,2]
[327931060,1716665432356,-500.0,0.00021935,2]
[327931061,1716665432366,-740.18,0.00021966,2]
[327931062,1716665432375,-250.0,0.00022188,2]
[327931063,1716665432384,-362.92,0.00022252,2]
[327931064,1716665432394,-475.99,0.00022335,2]
[327931065,1716665432403,-475.99,0.00022396,2]
[327931066,1716665432413,-475.99,0.00022457,2]
[327931067,1716665432422,-475.99,0.00022519,2]
[327931068,1716665432431,-475.99,0.0002258,2]
[327931069,1716665432449,-475.99,0.00022641,2]
[327931070,1716665432460,-475.99,0.00022702,2]
[327931071,1716665432470,-475.99,0.00022764,2]
[327931072,1716665432480,-1237.11,0.00022804,2]
[327931073,1716665432490,-475.99,0.00022825,2]
[327931074,1716665432500,-23890.0,0.0002287,2]
[327931075,1716665432510,-475.99,0.00022886,2]
[327931076,1716665432520,-475.99,0.00022947,2]
[327931077,1716665432529,-364.57392248,0.0002295,2]
[327931078,1716665432539,-200.0,0.00023004,2]
[327931079,1716665432549,-475.99,0.00023009,2]
[327931080,1716665432559,-172.5,0.00023035,2]
[327931081,1716665432570,-475.99,0.0002307,2]
[327931082,1716665432580,-475.99,0.00023131,2]
[327931083,1716665432589,-475.99,0.00023192,2]
[327931084,1716665432598,-475.99,0.00023254,2]
[327931085,1716665432608,-475.99,0.00023315,2]
[327931086,1716665432618,-166.72,0.00023355,2]
[327931087,1716665432628,-475.99,0.00023376,2]
[327931088,1716665432638,-150.0,0.00023398,2]
[327931089,1716665432647,-475.99,0.00023437,2]
[327931090,1716665432657,-475.99,0.00023499,2]
[327931091,1716665432667,-600.0,0.0002384,2]
[327931092,1716665432676,-21906.072,0.00023867,2]
[327931093,1716665432687,-519.64,0.00024016,2]
[327931094,1716665432702,-150.0,0.00024241,2]
[327931095,1716665432712,-362.92,0.00024516,2]
[327931096,1716665432722,-400.0,0.0002456,2]
[327931097,1716665432732,-257.24940323,0.00024675,2]
[327931098,1716665432742,-445.6637425,0.00024675,2]
[327931099,1716665432752,-150.0,0.0002472,2]
[327931100,1716665432762,-152.98616253,0.00024759,2]
[327931101,1716665432772,-164.38,0.0002487,2]
[327931102,1716665432782,-51838.28471835,0.00024898,2]
[327931103,1716665432792,-150.0,0.00025203,2]
[327931104,1716665432802,-155.19,0.00025494,2]
[327931105,1716665432812,-1237.11,0.00025544,2]
[327931106,1716665432824,-2500.0,0.000256,2]
[327931107,1716665432837,-155.19,0.00025622,2]
[327931108,1716665432846,-1000.0,0.00025636,2]
[327931109,1716665433079,-51838.2847183,0.000257,2]
[327931110,1716665433089,-150.0,0.0002605,2]
[327931111,1716665433098,-150.0,0.00026066,2]
[327931112,1716665433108,-1500.0,0.000261,2]
[327931113,1716665433117,-1000.0,0.00026184,2]
[327931114,1716665433127,-150.0,0.00026466,2]
[327931115,1716665433136,-150.0,0.00026544,2]
[327931116,1716665433145,-1500.0,0.000266,2]
[327931117,1716665433159,-150.0,0.00026646,2]
[327931118,1716665433168,-1000.0,0.00026732,2]
[327931119,1716665433177,-362.92,0.0002678,2]
[327931120,1716665433187,-452.6730536,0.00026816,2]
[327931121,1716665433197,-300.0694125,0.00026816,2]
[327931122,1716665433207,-600.0,0.0002682,2]
[327931123,1716665433216,-51838.2847183,0.00026825,2]
[327931124,1716665433225,-452.67305359,0.00026886,2]
[327931125,1716665433237,-201141.26329537,0.000269,2]
[327931126,1716665433248,-150.0,0.00026916,2]
[327931127,1716665433257,-408.70024,0.0002693,2]
[327931128,1716665433267,-452.67305359,0.00026957,2]
[327931129,1716665433276,-200.0,0.00026979,2]
[327931130,1716665433285,-155.84954072,0.00027,4]
[327931131,1716665433295,-900.0,0.00027006,2]
[327931132,1716665433305,-500.0,0.00027006,2]
[327931133,1716665433314,-500.0,0.00027006,2]
[327931134,1716665433325,-452.67305359,0.00027027,2]
[327931135,1716665433335,-170.15696502,0.00027093,2]
[327931136,1716665433344,-5017.11008673,0.00027093,2]
[327931137,1716665433353,-452.67305359,0.00027097,2]
[327931138,1716665433363,-344.0,0.000271,2]
[327931139,1716665433373,-173.95959608,0.000271,2]
[327931140,1716665433382,-150.0,0.000271,2]
[327931141,1716665433392,-1500.0,0.000271,2]
[327931142,1716665433402,-151.84,0.00027183,2]
[327931143,1716665433411,-151.84,0.00027183,2]
[327931144,1716665433420,-151.84,0.00027183,2]
[327931145,1716665433430,-151.84,0.00027187,2]
[327931146,1716665433439,-10786.6581914,0.00027187,2]
[327931147,1716665433449,-1307.3571429,0.00027187,2]
[327931148,1716665433458,-50266.0,0.0002719,2]
[327931149,1716665433467,-493.47033419,0.00027192,2]
[327931150,1716665433476,-500.0,0.00027192,2]
[327931151,1716665433490,-500.0,0.00027192,2]
[327931152,1716665433500,-500.0,0.00027192,2]
[327931153,1716665433510,-500.0,0.00027192,2]
[327931154,1716665433519,-500.0,0.00027192,2]
[327931155,1716665433528,-556.27374913,0.00027192,2]
[327931156,1716665433538,-500.0,0.00027192,2]
[327931157,1716665433547,-500.0,0.00027192,2]
[327931158,1716665433556,-500.0,0.00027192,2]
[327931159,1716665433566,-647.97501822,0.00027192,2]
[327931160,1716665433576,-9370.40642693,0.00027193,2]
[327931161,1716665433591,-1712.57125797,0.00027193,2]
[327931177,1716665437969,-1000.0,0.00027,2]
[327931178,1716665437979,-23.35541671,0.0002718,2]
[327931179,1716665437992,-275.45084696,0.0002718,2]
[327931180,1716665438003,-298.80626367,0.00027183,2]
[327931181,1716665438012,-490.5156049,0.00027192,2]
[327931182,1716665438023,-447.9385164,0.00027192,2]
[327931183,1716665438032,-500.0,0.00027192,2]
[327931184,1716665438042,-500.0,0.00027192,2]
[327931185,1716665438052,-444.17284476,0.00027192,2]
[327931186,1716665438062,-249.48310775,0.00027192,2]
[327931187,1716665438072,-12028.73437668,0.00027192,9]
[327931188,1716665438124,-675.40068488,0.00027192,9]
[327931189,1716665438136,-1283.63250873,0.00027192,9]
[327931190,1716665438149,-25348.0221832,0.00027192,9]
[327931191,1716665438310,-1670.30283729,0.00027192,9]
[327931223,1716665442527,-311.62064007,0.00027192,2]
[327931224,1716665442537,-278.90148228,0.00027192,9]
[327931226,1716665442667,-413.1290587,0.00027192,9]
[327931261,1716665443353,-559.73321733,0.00027192,9]
[327931319,1716665445901,-500.0,0.00027,2]
[327931320,1716665445912,-117.50189938,0.00027187,2]
[327931321,1716665446054,-4637.0020027,0.00027187,2]
[327931322,1716665446066,-1488.74012002,0.00027187,2]
[327931323,1716665446075,-4228.05987998,0.00027192,9]
[327931324,1716665446088,-5430.0,0.00027192,9]
[327931325,1716665446100,-4424.51803,0.00027192,9]
[327931326,1716665446112,-2399.43919613,0.00027192,9]
[327931327,1716665446204,-177.33401721,0.00027191,2]
[327931328,1716665446213,-520.32598279,0.00027192,9]
[327931329,1716665446352,-1401.15882366,0.00027192,9]
[327931330,1716665579285,208.84,0.00025858,120]
[327931331,1716665625015,196389.58,0.00013,2]
[327931332,1716665625047,8950.92771015,0.00013,2]
[327931333,1716665648152,410.02286403,0.00013,2]
[327931334,1716665660154,410.42957235,0.00013,2]
[327931352,1716666632048,-164.6263139,0.0001387,2]
[327931353,1716666632057,-337.29571537,0.00013968,2]
[327931354,1716666632067,-229.68,0.00013969,2]
[327931355,1716666632076,-4281.0007606,0.0001397,2]
[327931356,1716666632085,-300.0,0.0001397,2]
[327931357,1716666632094,-150.0,0.0001397,2]
[327931358,1716666632103,-176.49,0.00013973,2]
[327931359,1716666632112,-153.72,0.00013973,2]
[327931360,1716666632121,-301.0,0.00015305,2]
[327931361,1716666632131,-164.62631389,0.00015329,2]
[327931362,1716666632141,-164.62631389,0.00016788,2]
[327931363,1716666632330,-758.0,0.000178,2]
[327931364,1716666632340,-150.0,0.00017863,2]
[327931365,1716666632349,-4070.0,0.000179,2]
[327931367,1716666632359,-164.62631389,0.00018247,2]
[327931369,1716666632368,-155.0,0.00019,2]
[327931371,1716666632378,-164.62631389,0.00019706,2]
[327931373,1716666632387,-1050.0,0.00021,2]
[327931375,1716666632397,-164.62631389,0.00021164,2]
[327931377,1716666632406,-517.85,0.00021735,2]
[327931379,1716666632415,-155.19724377,0.00021917,2]
[327931381,1716666632424,-164.62631389,0.00022623,2]
[327931383,1716666632434,-219.51,0.00023276,2]
[327931385,1716666632443,-166.72,0.00023375,2]
[327931387,1716666632452,-250.0,0.00023379,2]
[327931389,1716666632461,-23890.0,0.00023439,2]